fUSD/lending_fUSD_20240526
["ID","MTS","AMOUNT","RATE_DAILY","PERIOD"]
[327976334,1716732693539,-500.0,0.0003041,4]
[327976335,1716732693551,-424.0174019,0.0003041,4]
[327976336,1716732693560,-576.75,0.0003041,4]
[327976337,1716732693570,-615.98,0.0003041,4]
[327976338,1716732693579,-500.0,0.0003041,4]
[327976339,1716732693588,-767.17,0.0003041,4]
[327976340,1716732693598,-633.88,0.0003041,4]
[327976341,1716732693607,-500.0,0.0003041,4]
[327976342,1716732693617,-758.6,0.0003041,4]
[327976343,1716732693628,-1363.1,0.0003041,4]
[327976344,1716732693638,-500.0,0.0003041,4]
[327976345,1716732693648,-500.0,0.0003041,4]
[327976346,1716732693657,-535.29,0.0003041,4]
[327976347,1716732693667,-500.0,0.0003041,4]
[327976348,1716732693676,-500.0,0.0003041,4]
[327976349,1716732693686,-596.76,0.0003041,4]
[327976350,1716732693696,-500.0,0.0003041,4]
[327976351,1716732693706,-500.0,0.0003041,4]
[327976352,1716732693715,-610.32891294,0.0003041,4]
[327976353,1716732693725,-500.0,0.0003041,4]
[327976354,1716732693735,-500.0,0.0003041,4]
[327976355,1716732693745,-500.0,0.0003041,4]
[327976356,1716732693755,-500.0,0.0003041,4]
[327976357,1716732693765,-500.0,0.0003041,4]
[327976358,1716732693775,-1000.0,0.0003041,5]
[327976359,1716732693784,-500.0,0.0003041,4]
[327976360,1716732693795,-500.0,0.0003041,4]
[327976361,1716732693804,-500.0,0.0003041,4]
[327976362,1716732693814,-638.58,0.0003041,4]
[327976363,1716732693824,-274.08044114,0.0003041,4]
[327976364,1716732693834,-813.06,0.0003041,4]
[327976365,1716732693844,-676.35,0.0003041,4]
[327976366,1716732693854,-500.0,0.0003041,4]
[327976367,1716732693864,-1206.79,0.0003041,4]
[327976368,1716732693875,-500.0,0.0003041,4]
[327976369,1716732693885,-758.9,0.0003041,4]
[327976370,1716732693895,-500.0,0.0003041,4]
[327976371,1716732693904,-500.0,0.0003041,4]
[327976372,1716732693914,-500.0,0.0003041,4]
[327976373,1716732693924,-500.0,0.0003041,4]
[327976374,1716732693935,-500.0,0.0003041,4]
[327976375,1716732693945,-544.35,0.0003041,2]
[327976376,1716732693955,-500.0,0.0003041,4]
[327976377,1716732693965,-500.0,0.0003041,4]
[327976378,1716732693975,-500.0,0.0003041,4]
[327976379,1716732693985,-500.0,0.0003041,4]
[327976380,1716732693995,-607.01,0.0003041,4]
[327976381,1716732694006,-500.0,0.0003041,4]
[327976382,1716732694016,-869.48,0.0003041,4]
[327976383,1716732694026,-500.0,0.0003041,4]
[327976384,1716732694036,-500.0,0.0003041,4]
[327976385,1716732694045,-598.19,0.0003041,4]
[327976386,1716732694055,-501.39,0.0003041,4]
[327976387,1716732694064,-565.06,0.0003041,4]
[327976388,1716732694074,-500.0,0.0003041,4]
[327976389,1716732694084,-536.08,0.0003041,4]
[327976390,1716732694094,-500.0,0.0003041,4]
[327976391,1716732694104,-500.0,0.0003041,4]
[327976392,1716732694113,-500.0,0.0003041,4]
[327976393,1716732694123,-500.0,0.0003041,4]
[327976394,1716732694133,-500.0,0.0003041,4]
[327976395,1716732694142,-554.65061348,0.0003041,4]
[327976396,1716732694152,-500.0,0.0003041,4]
[327976397,1716732694161,-500.0,0.0003041,4]
[327976398,1716732694171,-500.0,0.0003041,4]
[327976399,1716732694183,-575.01,0.0003041,4]
[327976400,1716732694192,-500.0,0.0003041,4]
[327976401,1716732694202,-500.0,0.0003041,4]
[327976402,1716732694212,-500.0,0.0003041,4]
[327976403,1716732694222,-500.0,0.0003041,4]
[327976404,1716732694233,-179.19,0.0003041,4]
[327976405,1716732694243,-664.28,0.0003041,4]
[327976406,1716732694254,-500.0,0.0003041,4]
[327976407,1716732694264,-500.0,0.0003041,4]
[327976408,1716732694274,-500.0,0.0003041,4]
[327976409,1716732694284,-500.0,0.0003041,4]
[327976410,1716732694293,-1420.49,0.0003041,4]
[327976411,1716732694303,-500.0,0.0003041,4]
[327976412,1716732694313,-500.0,0.0003041,4]
[327976413,1716732694322,-396.2975136,0.0003041,4]
[327976414,1716732694332,-911.95,0.0003041,4]
[327976415,1716732694342,-532.91,0.0003041,4]
[327976416,1716732694352,-876.64,0.0003041,4]
[327976417,1716732694363,-845.02,0.0003041,4]
[327976418,1716732694373,-500.0,0.0003041,4]
[327976419,1716732694382,-1217.15,0.0003041,4]
[327976420,1716732694392,-500.0,0.0003041,4]
[327976421,1716732694402,-500.0,0.0003041,4]
[327976422,1716732694412,-500.0,0.0003041,4]
[327976423,1716732694422,-500.0,0.0003041,4]
[327976424,1716732694432,-1573.33,0.0003041,4]
[327976425,1716732694442,-500.0,0.0003041,4]
[327976426,1716732694452,-1943.35,0.0003041,4]
[327976427,1716732694462,-647.0,0.0003041,4]
[327976428,1716732694477,-827.18,0.0003041,4]
[327976429,1716732694487,-525.9,0.0003041,4]
[327976430,1716732694497,-1647.19,0.0003041,4]
[327976431,1716732694507,-812.79,0.0003041,4]
[327976432,1716732694518,-656.92,0.0003041,4]
[327976433,1716732694527,-1479.16,0.0003041,4]
[327976434,1716732694537,-500.0,0.0003041,4]
[327976435,1716732694548,-859.25,0.0003041,4]
[327976436,1716732694559,-500.0,0.0003041,4]
[327976437,1716732694569,-705.7,0.0003041,4]
[327976438,1716732694579,-524.26,0.0003041,4]
[327976439,1716732694588,-500.0,0.0003041,4]
[327976440,1716732694598,-852.83,0.0003041,4]
[327976441,1716732694607,-792.18,0.0003041,4]
[327976442,1716732694617,-9047.47,0.0003041,4]
[327976443,1716732694627,-2563.75,0.0003041,4]
[327976444,1716732694638,-500.0,0.0003041,4]
[327976445,1716732694648,-500.0,0.0003041,4]
[327976446,1716732694658,-543.61,0.0003041,4]
[327976447,1716732694668,-937.7,0.0003041,4]
[327976448,1716732694678,-657.54,0.0003041,4]
[327976449,1716732694689,-1533.52,0.0003041,4]
[327976450,1716732694699,-782.0,0.0003041,4]
[327976451,1716732694709,-1870.6,0.0003041,4]
[327976452,1716732694719,-500.0,0.0003041,4]
[327976453,1716732694730,-523.58,0.0003041,4]
[327976454,1716732694741,-662.47,0.0003041,4]
[327976455,1716732694751,-611.87,0.0003041,4]
[327976456,1716732694761,-709.98,0.0003041,4]
[327976457,1716732694771,-500.0,0.0003041,4]
[327976458,1716732694780,-500.0,0.0003041,4]
[327976459,1716732694791,-739.81,0.0003041,4]
[327976460,1716732694801,-6199.76,0.0003041,4]
[327976461,1716732694811,-500.0,0.0003041,4]
[327976462,1716732694821,-724.86,0.0003041,4]
[327976463,1716732694832,-1320.63,0.0003041,4]
[327976464,1716732694841,-500.0,0.0003041,4]
[327976465,1716732694851,-500.0,0.0003041,4]
[327976466,1716732694862,-500.0,0.0003041,4]
[327976467,1716732694872,-852.95,0.0003041,4]
[327976468,1716732694882,-2564.82,0.0003041,4]
[327976469,1716732694892,-818.52,0.0003041,4]
[327976470,1716732694967,-571.73,0.0003041,4]
[327976471,1716732694977,-2538.12,0.0003041,4]
[327976472,1716732694986,-500.0,0.0003041,4]
[327976473,1716732694996,-598.56,0.0003041,4]
[327976474,1716732695006,-500.0,0.0003041,4]
[327976475,1716732695016,-2937.07,0.0003041,4]
[327976476,1716732695025,-1041.17,0.0003041,4]
[327976477,1716732695035,-500.0,0.0003041,4]
[327976478,1716732695044,-500.0,0.0003041,4]
[327976479,1716732695054,-656.51,0.0003041,4]
[327976480,1716732695063,-1310.5,0.0003041,4]
[327976481,1716732695073,-500.0,0.0003041,4]
[327976482,1716732695083,-552.73,0.0003041,4]
[327976483,1716732695093,-967.98,0.0003041,4]
[327976484,1716732695103,-500.0,0.0003041,4]
[327976485,1716732695112,-1148.48,0.0003041,4]
[327976486,1716732695121,-795.96,0.0003041,4]
[327976487,1716732695130,-500.0,0.0003041,4]
[327976488,1716732695139,-678.18,0.0003041,4]
[327976489,1716732695148,-576.35,0.0003041,4]
[327976490,1716732695158,-500.0,0.0003041,4]
[327976491,1716732695168,-585.71,0.0003041,4]
[327976492,1716732695177,-606.32,0.0003041,4]
[327976493,1716732695188,-1027.88,0.0003041,4]
[327976494,1716732695197,-2390.71,0.0003041,4]
[327976495,1716732695210,-720.94,0.0003041,4]
[327976496,1716732695220,-884.01,0.0003041,4]
[327976497,1716732695230,-571.26,0.0003041,4]
[327976498,1716732695239,-1408.04,0.0003041,4]
[327976499,1716732695249,-500.0,0.0003041,4]
[327976500,1716732695258,-500.0,0.0003041,4]
[327976502,1716732695267,-500.0,0.0003041,4]
[327976503,1716732695276,-1268.26,0.0003041,4]
[327976504,1716732695286,-1085.42,0.0003041,4]
[327976505,1716732695295,-8694.34,0.0003041,4]
[327976506,1716732695303,-500.0,0.0003041,4]
[327976507,1716732695313,-1268.05,0.0003041,4]
[327976508,1716732695322,-1448.06,0.0003041,4]
[327976509,1716732695332,-972.62,0.0003041,4]
[327976510,1716732695340,-573.16,0.0003041,4]
[327976511,1716732695349,-3904.28,0.0003041,4]
[327976512,1716732695358,-914.87,0.0003041,4]
[327976513,1716732695368,-1089.59,0.0003041,4]
[327976514,1716732695377,-500.0,0.0003041,4]
[327976515,1716732695386,-885.34,0.0003041,4]
[327976516,1716732695395,-591.51,0.0003041,4]
[327976517,1716732695405,-500.0,0.0003041,4]
[327976518,1716732695414,-1079.94,0.0003041,4]
[327976519,1716732695424,-879.76,0.0003041,4]
[327976520,1716732695434,-1841.81,0.0003041,4]
[327976521,1716732695443,-500.0,0.0003041,4]
[327976522,1716732695453,-1077.58,0.0003041,4]
[327976523,1716732695462,-625.43,0.0003041,4]
[327976524,1716732695475,-500.0,0.0003041,4]
[327976525,1716732695485,-710.46,0.0003041,4]
[327976526,1716732695494,-647.72,0.0003041,4]
[327976527,1716732695503,-568.85,0.0003041,4]
[327976528,1716732695514,-678.18,0.0003041,4]
[327976529,1716732695524,-869.84,0.0003041,4]
[327976530,1716732695533,-500.0,0.0003041,4]
[327976531,1716732695543,-500.0,0.0003041,4]
[327976532,1716732695553,-717.42,0.0003041,4]
[327976533,1716732695563,-576.0,0.0003041,4]
[327976534,1716732695572,-1137.45,0.0003041,4]
[327976535,1716732695582,-500.0,0.0003041,4]
[327976536,1716732695591,-500.0,0.0003041,4]
[327976537,1716732695600,-500.0,0.0003041,4]
[327976538,1716732695609,-1101.55,0.0003041,4]
[327976539,1716732695617,-500.0,0.0003041,4]
[327976540,1716732695626,-504.89,0.0003041,4]
[327976541,1716732695635,-623.77,0.0003041,4]
[327976542,1716732695645,-570.33,0.0003041,4]
[327976543,1716732695654,-853.64,0.0003041,4]
[327976544,1716732695664,-1592.22,0.0003041,4]
[327976545,1716732695673,-1027.97,0.0003041,4]
[327976546,1716732695684,-500.0,0.0003041,4]
[327976547,1716732695693,-1044.37,0.0003041,4]
[327976548,1716732695702,-1313.69,0.0003041,4]
[327976549,1716732695712,-624.18,0.0003041,4]
[327976550,1716732695721,-1190.26,0.0003041,4]
[327976551,1716732695730,-4137.91,0.0003041,4]
[327976552,1716732695739,-1036.79,0.0003041,4]
[327976553,1716732695747,-500.0,0.0003041,4]
[327976554,1716732695757,-500.0,0.0003041,4]
[327976555,1716732695766,-850.51,0.0003041,4]
[327976556,1716732695775,-916.61,0.0003041,4]
[327976557,1716732695784,-1474.98,0.0003041,4]
[327976558,1716732695794,-500.0,0.0003041,4]
[327976559,1716732695803,-707.12,0.0003041,4]
[327976560,1716732695812,-500.0,0.0003041,4]
[327976561,1716732695822,-2412.83,0.0003041,4]
[327976562,1716732695832,-500.0,0.0003041,4]
[327976563,1716732695841,-500.0,0.0003041,4]
[327976564,1716732695850,-687.58,0.0003041,4]
[327976565,1716732695859,-1038.84,0.0003041,4]
[327976566,1716732695868,-500.0,0.0003041,2]
[327976567,1716732695878,-500.0,0.0003041,4]
[327976568,1716732695887,-500.0,0.0003041,4]
[327976569,1716732695896,-928.91,0.0003041,4]
[327976570,1716732695905,-500.0,0.0003041,4]
[327976571,1716732695914,-654.73,0.0003041,4]
[327976572,1716732695923,-592.19,0.0003041,4]
[327976573,1716732695932,-502.52,0.0003041,4]
[327976574,1716732695942,-500.0,0.0003041,4]
[327976575,1716732695952,-500.0,0.0003041,4]
[327976576,1716732695961,-1244.5,0.0003041,4]
[327976577,1716732695971,-586.69,0.0003041,4]
[327976578,1716732695980,-827.03,0.0003041,4]
[327976579,1716732695990,-901.87,0.0003041,4]
[327976580,1716732695999,-793.2,0.0003041,4]
[327976581,1716732696008,-501.48,0.0003041,4]
[327976582,1716732696017,-709.61,0.0003041,4]
[327976583,1716732696026,-300.0,0.00030426,2]
[327976584,1716732696035,-712.87513125,0.0003044,10]
[327976585,1716732696045,-753.04240616,0.00030444,7]
[327976586,1716732696055,-232.27766012,0.00030444,7]
[327976587,1716732696064,-249.23485907,0.00030444,7]
[327976588,1716732696074,-2006.01668888,0.00030444,7]
[327976589,1716732696083,-152.35228072,0.00030471,7]
[327976590,1716732696093,-152.08174936,0.00030513,7]
[327976591,1716732696102,-1011.76,0.00030595,2]
[327976592,1716732696111,-10707.06410034,0.00030681,2]
[327976593,1716732696121,-500.0,0.00030684,4]
[327976594,1716732696130,-500.0,0.00030684,4]
[327976595,1716732696139,-867.51,0.00030684,4]
[327976596,1716732696148,-156.35,0.00030684,4]
[327976597,1716732696157,-613.37,0.00030684,4]
[327976598,1716732696165,-429.24542357,0.00030684,4]
[327976599,1716732696174,-689.25,0.00030684,4]
[327976600,1716732696184,-912.17,0.00030684,4]
[327976601,1716732696193,-500.0,0.00030684,4]
[327976602,1716732696202,-500.0,0.00030684,4]
[327976603,1716732696211,-577.1,0.00030684,4]
[327976604,1716732696220,-3083.08,0.00030684,4]
[327976605,1716732696229,-500.0,0.00030684,4]
[327976606,1716732696239,-691.79,0.00030684,4]
[327976607,1716732696248,-500.0,0.00030684,4]
[327976608,1716732696257,-500.0,0.00030684,4]
[327976609,1716732696266,-1003.57,0.00030684,4]
[327976610,1716732696276,-702.93,0.00030684,4]
[327976611,1716732696285,-500.0,0.00030684,4]
[327976612,1716732696294,-500.0,0.00030684,4]
[327976613,1716732696304,-900.58,0.00030684,4]
[327976614,1716732696312,-500.0,0.00030684,4]
[327976615,1716732696322,-500.0,0.00030684,4]
[327976616,1716732696332,-891.34,0.00030684,4]
[327976617,1716732696342,-838.16,0.00030684,2]
[327976618,1716732696351,-500.0,0.00030684,4]
[327976619,1716732696360,-576.75,0.00030684,4]
[327976620,1716732696370,-615.98,0.00030684,4]
[327976621,1716732696379,-500.0,0.00030684,4]
[327976622,1716732696388,-767.17,0.00030684,4]
[327976623,1716732696397,-633.88,0.00030684,4]
[327976624,1716732696406,-500.0,0.00030684,4]
[327976625,1716732696416,-758.6,0.00030684,4]
[327976626,1716732696425,-1363.1,0.00030684,4]
[327976627,1716732696435,-500.0,0.00030684,4]
[327976628,1716732696444,-500.0,0.00030684,4]
[327976629,1716732696453,-535.29,0.00030684,4]
[327976630,1716732696463,-500.0,0.00030684,4]
[327976631,1716732696474,-500.0,0.00030684,4]
[327976632,1716732696484,-596.76,0.00030684,4]
[327976633,1716732696492,-500.0,0.00030684,4]
[327976634,1716732696502,-500.0,0.00030684,4]
[327976635,1716732696511,-500.0,0.00030684,4]
[327976636,1716732696521,-500.0,0.00030684,4]
[327976637,1716732696531,-500.0,0.00030684,4]
[327976638,1716732696540,-500.0,0.00030684,4]
[327976639,1716732696551,-500.0,0.00030684,4]
[327976640,1716732696561,-1000.0,0.00030684,5]
[327976641,1716732696571,-500.0,0.00030684,4]
[327976642,1716732696580,-500.0,0.00030684,4]
[327976643,1716732696590,-500.0,0.00030684,4]
[327976644,1716732696599,-638.58,0.00030684,4]
[327976645,1716732696608,-813.06,0.00030684,4]
[327976646,1716732696618,-676.35,0.00030684,4]
[327976647,1716732696627,-605.10130835,0.00030684,4]
[327976648,1716732696636,-1206.79,0.00030684,4]
[327976649,1716732696646,-500.0,0.00030684,4]
[327976650,1716732696655,-758.9,0.00030684,4]
[327976651,1716732696665,-500.0,0.00030684,4]
[327976652,1716732696674,-490.14368495,0.00030684,4]
[327976653,1716732696684,-500.0,0.00030684,4]
[327976654,1716732696693,-500.0,0.00030684,4]
[327976655,1716732696702,-600.48334947,0.00030684,4]
[327976656,1716732696711,-544.35,0.00030684,2]
[327976657,1716732696721,-500.0,0.00030684,4]
[327976658,1716732696731,-154.00349638,0.00030684,4]
[327976659,1716732696740,-500.0,0.00030684,4]
[327976660,1716732696749,-500.0,0.00030684,4]
[327976661,1716732696759,-607.01,0.00030684,4]
[327976662,1716732696768,-500.0,0.00030684,4]
[327976663,1716732696777,-869.48,0.00030684,4]
[327976664,1716732696786,-500.0,0.00030684,4]
[327976665,1716732696795,-500.0,0.00030684,4]
[327976666,1716732696804,-598.19,0.00030684,4]
[327976667,1716732696814,-501.39,0.00030684,4]
[327976668,1716732696823,-565.06,0.00030684,4]
[327976669,1716732696832,-500.0,0.00030684,4]
[327976670,1716732696841,-536.08,0.00030684,4]
[327976671,1716732696851,-500.0,0.00030684,4]
[327976672,1716732696860,-500.0,0.00030684,4]
[327976673,1716732696869,-500.0,0.00030684,4]
[327976674,1716732696878,-500.0,0.00030684,4]
[327976675,1716732696887,-500.0,0.00030684,4]
[327976676,1716732696896,-500.0,0.00030684,4]
[327976677,1716732696905,-500.0,0.00030684,4]
[327976678,1716732696915,-500.0,0.00030684,4]
[327976679,1716732696924,-575.01,0.00030684,4]
[327976680,1716732696935,-500.0,0.00030684,4]
[327976681,1716732696944,-500.0,0.00030684,4]
[327976682,1716732696953,-500.0,0.00030684,4]
[327976683,1716732696962,-500.0,0.00030684,4]
[327976684,1716732696972,-179.19,0.00030684,4]
[327976685,1716732696981,-664.28,0.00030684,4]
[327976686,1716732696991,-284.51960198,0.00030684,4]
[327976687,1716732697001,-500.0,0.00030684,4]
[327976688,1716732697011,-500.0,0.00030684,4]
[327976689,1716732697020,-500.0,0.00030684,4]
[327976690,1716732697030,-1420.49,0.00030684,4]
[327976691,1716732697039,-500.0,0.00030684,4]
[327976692,1716732697049,-500.0,0.00030684,4]
[327976693,1716732697058,-911.95,0.00030684,4]
[327976694,1716732697068,-532.91,0.00030684,4]
[327976695,1716732697077,-876.64,0.00030684,4]
[327976696,1716732697087,-845.02,0.00030684,4]
[327976697,1716732697096,-500.0,0.00030684,4]
[327976698,1716732697106,-1217.15,0.00030684,4]
[327976699,1716732697115,-500.0,0.00030684,4]
[327976700,1716732697125,-500.0,0.00030684,4]
[327976701,1716732697135,-500.0,0.00030684,4]
[327976702,1716732697144,-500.0,0.00030684,4]
[327976703,1716732697153,-1573.33,0.00030684,4]
[327976704,1716732697161,-542.03970276,0.00030684,4]
[327976705,1716732697169,-1943.35,0.00030684,4]
[327976706,1716732697178,-647.0,0.00030684,4]
[327976707,1716732697187,-827.18,0.00030684,4]
[327976708,1716732697195,-525.9,0.00030684,4]
[327976709,1716732697204,-1647.19,0.00030684,4]
[327976710,1716732697213,-812.79,0.00030684,4]
[327976711,1716732697222,-656.92,0.00030684,4]
[327976712,1716732697231,-1479.16,0.00030684,4]
[327976713,1716732697241,-500.0,0.00030684,4]
[327976714,1716732697251,-859.25,0.00030684,4]
[327976715,1716732697260,-500.0,0.00030684,4]
[327976716,1716732697269,-705.7,0.00030684,4]
[327976717,1716732697278,-524.26,0.00030684,4]
[327976718,1716732697287,-500.0,0.00030684,4]
[327976719,1716732697296,-852.83,0.00030684,4]
[327976720,1716732697305,-792.18,0.00030684,4]
[327976721,1716732697314,-9047.47,0.00030684,4]
[327976722,1716732697324,-2563.75,0.00030684,4]
[327976723,1716732697334,-500.0,0.00030684,4]
[327976724,1716732697344,-500.0,0.00030684,4]
[327976725,1716732697353,-543.61,0.00030684,4]
[327976726,1716732697362,-937.7,0.00030684,4]
[327976727,1716732697371,-657.54,0.00030684,4]
[327976728,1716732697380,-1533.52,0.00030684,4]
[327976729,1716732697390,-782.0,0.00030684,4]
[327976730,1716732697399,-1870.6,0.00030684,4]
[327976731,1716732697409,-500.0,0.00030684,4]
[327976732,1716732697419,-662.47,0.00030684,4]
[327976733,1716732697429,-523.58,0.00030684,4]
[327976734,1716732697440,-611.87,0.00030684,4]
[327976735,1716732697450,-709.98,0.00030684,4]
[327976736,1716732697461,-500.0,0.00030684,4]
[327976737,1716732697474,-500.0,0.00030684,4]
[327976738,1716732697483,-739.81,0.00030684,4]
[327976739,1716732697493,-6199.76,0.00030684,4]
[327976740,1716732697503,-500.0,0.00030684,4]
[327976741,1716732697514,-724.86,0.00030684,4]
[327976742,1716732697524,-1320.63,0.00030684,4]
[327976743,1716732697533,-500.0,0.00030684,4]
[327976744,1716732697544,-500.0,0.00030684,4]
[327976745,1716732697554,-500.0,0.00030684,4]
[327976746,1716732697563,-852.95,0.00030684,4]
[327976747,1716732697574,-2564.82,0.00030684,4]
[327976748,1716732697583,-818.52,0.00030684,4]
[327976749,1716732697592,-571.73,0.00030684,4]
[327976750,1716732697602,-2538.12,0.00030684,4]
[327976751,1716732697612,-500.0,0.00030684,4]
[327976752,1716732697622,-598.56,0.00030684,4]
[327976753,1716732697632,-500.0,0.00030684,4]
[327976754,1716732697642,-2937.07,0.00030684,4]
[327976755,1716732697652,-1041.17,0.00030684,4]
[327976756,1716732697661,-500.0,0.00030684,4]
[327976757,1716732697671,-500.0,0.00030684,4]
[327976758,1716732697682,-656.51,0.00030684,4]
[327976759,1716732697693,-1310.5,0.00030684,4]
[327976760,1716732697704,-500.0,0.00030684,4]
[327976761,1716732697715,-552.73,0.00030684,4]
[327976762,1716732697724,-967.98,0.00030684,4]
[327976763,1716732697733,-500.0,0.00030684,4]
[327976764,1716732697743,-1148.48,0.00030684,4]
[327976765,1716732697752,-795.96,0.00030684,4]
[327976766,1716732697762,-500.0,0.00030684,4]
[327976767,1716732697771,-678.18,0.00030684,4]
[327976768,1716732697781,-576.35,0.00030684,4]
[327976769,1716732697791,-500.0,0.00030684,4]
[327976770,1716732697800,-585.71,0.00030684,4]
[327976771,1716732697810,-606.32,0.00030684,4]
[327976772,1716732697820,-1027.88,0.00030684,4]
[327976773,1716732697830,-2390.71,0.00030684,4]
[327976774,1716732697839,-720.94,0.00030684,4]
[327976775,1716732697849,-884.01,0.00030684,4]
[327976776,1716732697858,-571.26,0.00030684,4]
[327976777,1716732697868,-1408.04,0.00030684,4]
[327976778,1716732697877,-500.0,0.00030684,4]
[327976779,1716732697887,-500.0,0.00030684,4]
[327976780,1716732697896,-500.0,0.00030684,4]
[327976781,1716732697906,-1268.26,0.00030684,4]
[327976782,1716732697916,-1085.42,0.00030684,4]
[327976783,1716732697925,-8694.34,0.00030684,4]
[327976784,1716732697935,-500.0,0.00030684,4]
[327976785,1716732697945,-1268.05,0.00030684,4]
[327976786,1716732697955,-1448.06,0.00030684,4]
[327976787,1716732697964,-972.62,0.00030684,4]
[327976788,1716732697975,-573.16,0.00030684,4]
[327976789,1716732697984,-3904.28,0.00030684,4]
[327976790,1716732697994,-914.87,0.00030684,4]
[327976791,1716732698003,-1089.59,0.00030684,4]
[327976792,1716732698013,-500.0,0.00030684,4]
[327976793,1716732698023,-885.34,0.00030684,4]
[327976794,1716732698033,-591.51,0.00030684,4]
[327976795,1716732698043,-500.0,0.00030684,4]
[327976796,1716732698053,-1079.94,0.00030684,4]
[327976797,1716732698063,-879.76,0.00030684,4]
[327976798,1716732698072,-1841.81,0.00030684,4]
[327976799,1716732698082,-500.0,0.00030684,4]
[327976800,1716732698092,-1077.58,0.00030684,4]
[327976801,1716732698102,-625.43,0.00030684,4]
[327976802,1716732698111,-500.0,0.00030684,4]
[327976803,1716732698121,-710.46,0.00030684,4]
[327976804,1716732698130,-647.72,0.00030684,4]
[327976805,1716732698140,-568.85,0.00030684,4]
[327976806,1716732698150,-869.84,0.00030684,4]
[327976807,1716732698159,-678.18,0.00030684,4]
[327976808,1716732698169,-500.0,0.00030684,4]
[327976809,1716732698178,-421.11465621,0.00030684,4]
[327976810,1716732698189,-717.42,0.00030684,4]
[327976811,1716732698198,-576.0,0.00030684,4]
[327976812,1716732698208,-1137.45,0.00030684,4]
[327976813,1716732698218,-500.0,0.00030684,4]
[327976814,1716732698228,-500.0,0.00030684,4]
[327976815,1716732698237,-500.0,0.00030684,4]
[327976816,1716732698247,-1101.55,0.00030684,4]
[327976817,1716732698256,-500.0,0.00030684,4]
[327976818,1716732698265,-504.89,0.00030684,4]
[327976819,1716732698276,-623.77,0.00030684,4]
[327976820,1716732698286,-570.33,0.00030684,4]
[327976821,1716732698296,-853.64,0.00030684,4]
[327976822,1716732698306,-1592.22,0.00030684,4]
[327976823,1716732698315,-1027.97,0.00030684,4]
[327976824,1716732698325,-500.0,0.00030684,4]
[327976825,1716732698335,-1044.37,0.00030684,4]
[327976826,1716732698344,-1313.69,0.00030684,4]
[327976827,1716732698354,-624.18,0.00030684,4]
[327976828,1716732698363,-1190.26,0.00030684,4]
[327976829,1716732698372,-4137.91,0.00030684,4]
[327976830,1716732698382,-1036.79,0.00030684,4]
[327976831,1716732698392,-500.0,0.00030684,4]
[327976832,1716732698402,-500.0,0.00030684,4]
[327976833,1716732698412,-850.51,0.00030684,4]
[327976834,1716732698422,-1474.98,0.00030684,4]